bitfinex-derivatives/quotes_ETHF0:USTF0_20250426
["timestamp","ask_amount","ask_price","bid_price","bid_amount"]
[1745654165055,1.10805,1804.3,1804.1,4.71911]
[1745654165266,0.8283,1804.2,1804.1,4.71911]
[1745654165456,3.3408,1804.2,1804.1,4.71911]
[1745654166164,8.6488,1804.2,1804.1,4.71911]
[1745654167662,7.8084,1804.2,1804.1,6.31041]
[1745654167857,7.8084,1804.2,1804.1,7.12631]
[1745654172275,7.8084,1804.2,1804.1,6.31041]
[1745654174572,7.8084,1804.2,1804.1,5.2023]
[1745654174877,8.91645,1804.2,1804.1,3.611]
[1745654177079,12.12425,1804.2,1804.1,3.611]
[1745654177276,1.10822,1804.0,1803.9,3.611]
[1745654177479,4.31602,1804.0,1803.9,3.611]
[1745654177876,5.98982,1804.0,1803.9,3.611]
[1745654178174,11.29782,1804.0,1803.9,3.611]
[1745654178475,1.10836,1803.7,1803.6,3.611]
[1745654178680,4.31616,1803.7,1803.6,3.611]
[1745654179278,9.62416,1803.7,1803.6,3.611]
[1745654179581,11.37106,1803.7,1803.6,3.611]
[1745654182981,1.10861,1803.3,1803.0,3.2078]
[1745654183181,4.31633,1803.5,1803.1,3.612]
[1745654183382,1.6841,1803.4,1803.3,1.1086]
[1745654183583,2.5212,1803.4,1803.3,1.1086]
[1745654184173,7.8292,1803.4,1803.3,1.1086]
[1745654184380,7.8292,1803.4,1803.2,2.74563]
[1745654184569,1.6841,1803.3,1803.2,2.74563]
[1745654185281,6.9921,1803.3,1803.2,2.74563]
[1745654194294,7.8562,1803.3,1803.2,2.74563]
[1745654196098,7.8562,1803.3,1803.1,4.72071]
[1745654196298,1.7099,1803.2,1803.1,4.72071]
[1745654197195,7.0179,1803.2,1803.1,4.72071]
[1745654199697,7.0179,1803.2,1803.1,3.612]
[1745654200603,8.12657,1803.2,1803.1,3.612]
[1745654201097,7.0179,1803.2,1803.1,3.612]
[1745654203101,7.0179,1803.2,1803.1,4.72073]
[1745654203699,7.0179,1803.2,1803.1,6.46173]
[1745654204095,7.0179,1803.2,1803.1,5.353]
[1745654204995,7.0179,1803.2,1803.1,6.46173]
[1745654205499,7.0179,1803.2,1803.1,5.353]
[1745654207192,7.0179,1803.2,1803.1,6.46173]
[1745654209300,7.0179,1803.2,1803.1,5.353]
[1745654209702,7.0179,1803.2,1803.1,6.46173]
[1745654210410,7.0179,1803.2,1803.1,4.72073]
[1745654213714,7.0179,1803.2,1803.1,3.612]
[1745654215706,8.12657,1803.2,1803.1,3.612]
[1745654215907,7.0179,1803.2,1803.1,3.612]
[1745654216608,8.12657,1803.2,1803.1,3.612]
[1745654218911,11.33437,1803.2,1803.1,3.612]
[1745654220819,8.12657,1803.2,1803.1,3.612]
[1745654221115,7.0179,1803.2,1803.1,4.72073]
[1745654221907,8.12657,1803.2,1803.1,3.612]
[1745654227319,8.12657,1803.2,1803.1,4.72073]
[1745654227521,8.12657,1803.2,1803.1,3.612]
[1745654227707,8.12657,1803.2,1803.1,4.72073]
[1745654227708,7.0179,1803.2,1803.1,4.72073]
[1745654228517,8.12657,1803.2,1803.1,4.72073]
[1745654228717,8.12657,1803.2,1803.1,3.612]
[1745654230620,8.12657,1803.2,1803.1,4.72073]
[1745654231323,8.12657,1803.2,1803.1,3.612]
[1745654232121,8.12657,1803.2,1803.1,4.72073]
[1745654232524,8.12657,1803.2,1803.1,3.612]
[1745654238223,1.10873,1803.1,1803.0,1.10874]
[1745654238427,2.4608,1803.1,1803.0,1.10874]
[1745654239126,7.7688,1803.1,1803.0,1.10874]
[1745654240026,8.87753,1803.1,1802.9,8.03871]
[1745654240216,1.5968,1803.0,1802.9,8.03871]
[1745654241128,6.9048,1803.0,1802.9,8.03871]
[1745654241922,6.9048,1803.0,1802.9,8.03875]
[1745654242328,6.9048,1803.0,1802.9,6.9299]
[1745654243527,6.9048,1803.0,1802.9,6.0941]
[1745654243730,7.7761,1803.0,1802.9,6.0941]
[1745654244329,7.7761,1803.0,1802.9,5.2347]
[1745654245024,7.7761,1803.0,1802.9,6.34355]
[1745654247329,6.9048,1803.0,1802.9,6.34355]
[1745654247523,6.9048,1803.0,1802.9,7.18715]
[1745654248129,6.9048,1803.0,1802.9,6.0783]
[1745654248330,6.9048,1803.0,1802.9,7.18715]
[1745654249727,5.308,1803.0,1802.9,7.18715]
[1745654251320,7.0273,1803.0,1802.9,7.18715]
[1745654255135,8.13609,1803.0,1802.9,3.612]
[1745654262535,1.10898,1802.7,1802.6,4.71999]
[1745654263142,6.41698,1802.7,1802.6,4.71999]
[1745654263531,8.06008,1802.7,1802.6,4.71999]
[1745654264142,6.9511,1802.7,1802.6,4.71999]
[1745654265045,8.06008,1802.7,1802.6,3.611]
[1745654266041,6.9511,1802.7,1802.6,4.72004]
[1745654266246,6.9511,1802.7,1802.6,3.611]
[1745654266746,8.06008,1802.7,1802.6,3.611]
[1745654267245,6.9511,1802.7,1802.6,3.611]
[1745654268038,8.06008,1802.7,1802.6,3.611]
[1745654269246,6.9511,1802.7,1802.6,3.611]
[1745654270147,8.06008,1802.7,1802.6,3.611]
[1745654271046,6.9511,1802.7,1802.6,3.611]
[1745654271440,8.06008,1802.7,1802.6,3.611]
[1745654273955,1.10914,1802.5,1802.4,3.611]
[1745654274641,2.69494,1802.5,1802.4,3.611]
[1745654275152,6.8938,1802.5,1802.4,3.611]
[1745654275545,8.0029,1802.5,1802.4,3.611]
[1745654275954,6.8938,1802.5,1802.4,4.72016]
[1745654276857,6.8938,1802.5,1802.4,3.611]
[1745654277157,6.8938,1802.5,1802.4,5.2651]
[1745654280058,8.0029,1802.5,1802.4,5.2651]
[1745654280259,8.0029,1802.5,1802.4,3.611]
[1745654281253,11.2107,1802.5,1802.4,3.611]
[1745654282451,1.10928,1802.2,1802.1,3.612]
[1745654283055,4.47238,1802.2,1802.1,3.612]
[1745654283251,9.78038,1802.2,1802.1,3.612]
[1745654288063,15.65038,1802.2,1802.1,3.612]
[1745654290860,15.65038,1802.2,1802.1,4.72135]
[1745654291164,14.5411,1802.2,1802.1,4.72135]
[1745654291664,14.5411,1802.2,1802.1,3.612]
[1745654291665,15.65038,1802.2,1802.1,3.612]
[1745654298570,15.65038,1802.2,1801.8,3.611]
[1745654298571,1.10947,1801.9,1801.8,3.611]
[1745654299067,6.41747,1801.9,1801.8,3.611]
[1745654299271,8.95757,1801.9,1801.8,3.611]
[1745654299578,8.95757,1801.9,1801.8,4.72053]
[1745654300377,8.95757,1801.9,1801.8,3.611]
[1745654311076,6.41747,1801.9,1801.8,3.611]
[1745654311981,6.41747,1801.9,1801.8,5.2463]
[1745654311982,8.02507,1801.9,1801.8,5.2463]
[1745654312881,11.23287,1801.9,1801.8,3.611]
[1745654313077,12.08127,1801.9,1801.8,3.611]
[1745654314282,10.9718,1801.9,1800.8,0.42376032]
[1745654314583,3.2078,1801.5,1801.1,3.612]
[1745654314785,1.10984,1801.3,1801.2,1.6926]
[1745654314985,1.10984,1801.3,1801.2,2.5338]
[1745654315185,5.308,1801.3,1801.2,3.6437]
[1745654316182,5.308,1801.3,1801.2,4.4753]
[1745654320388,5.308,1801.3,1801.2,3.3654]
[1745654320982,5.308,1801.3,1801.2,4.4753]
[1745654322891,5.308,1801.3,1801.2,3.3654]
[1745654323089,6.9483,1801.3,1801.2,3.3654]
[1745654323587,14.723,1801.3,1800.9,3.2078]
[1745654323777,3.2078,1801.0,1800.4,3.2078]
[1745654324090,2.5,1800.9,1800.5,3.3691]
[1745654324288,3.6101,1800.9,1800.6,5.2536]
[1745654324477,3.6101,1800.9,1800.7,1.6426]
[1745654325289,8.9181,1800.9,1800.7,1.6426]
[1745654326985,5.308,1800.9,1800.8,1.11015]
[1745654327193,5.308,1800.9,1800.8,5.98615]
[1745654327388,5.308,1800.9,1800.8,7.66395]
[1745654327790,5.308,1800.9,1800.8,12.66395]
[1745654328493,5.308,1800.9,1800.8,7.66395]
[1745654329094,5.308,1800.9,1800.8,12.66395]
[1745654329687,6.01216,1801.3,1801.0,1.11]
[1745654329886,6.01216,1801.3,1801.1,6.9523]
[1745654330083,10.2103,1801.3,1801.2,1.6783]
[1745654330283,11.32014,1801.3,1801.2,1.6783]
[1745654330684,10.2103,1801.3,1801.2,1.6783]
[1745654331085,11.32014,1801.3,1801.2,1.6783]
[1745654331297,1.1099,1801.2,1801.1,5.274]
[1745654331598,2.8044,1801.2,1801.1,4.4392]
[1745654331800,1.6945,1801.2,1801.1,4.4392]
[1745654331989,2.8044,1801.2,1801.1,4.4392]
[1745654332285,8.1124,1801.2,1801.1,3.611]
[1745654337300,1.10996,1801.1,1801.0,3.611]
[1745654337492,4.46766,1801.1,1801.0,3.611]
[1745654338198,9.77566,1801.1,1801.0,3.611]
[1745654341605,8.6657,1801.1,1801.0,3.611]
[1745654351205,7.8388,1801.1,1801.0,3.611]
[1745654351402,7.0271,1801.1,1801.0,3.611]
[1745654351804,7.0271,1801.1,1801.0,5.2176]
[1745654352002,5.308,1801.1,1801.0,5.2176]
[1745654352704,7.0287,1801.1,1801.0,5.2176]
[1745654354205,5.308,1801.1,1801.0,5.2176]
[1745654360311,5.308,1801.1,1801.0,8.4254]
[1745654360813,5.308,1801.1,1801.0,9.53542]
[1745654361324,1.708,1801.3,1801.0,9.53542]
[1745654361513,1.708,1801.3,1801.1,1.6429]
[1745654361816,1.708,1801.3,1801.1,2.75285]
[1745654362214,7.016,1801.3,1801.2,2.5092]
[1745654363416,5.308,1801.3,1801.2,3.3529]
[1745654363811,5.308,1801.3,1801.2,4.4628]
[1745654364715,3.394,1801.3,1801.2,7.6706]
[1745654366506,3.394,1801.3,1801.2,5.3126]
[1745654366916,3.394,1801.3,1801.2,6.4225]
[1745654367121,3.39106446,1801.3,1801.2,6.4225]
[1745654369417,3.39106446,1801.3,1801.2,9.6303]
[1745654372123,4.99516446,1801.3,1801.2,6.4225]
[1745654376519,4.99516446,1801.3,1801.2,5.3126]
[1745654376721,4.99516446,1801.3,1801.2,6.4225]
[1745654376918,4.99516446,1801.3,1801.2,5.3126]
[1745654377924,4.99516446,1801.3,1801.2,6.4225]
[1745654378929,4.99516446,1801.3,1801.2,5.3126]
[1745654380622,4.99516446,1801.3,1801.2,3.61]
[1745654381231,4.99516446,1801.3,1801.2,4.7199]
[1745654383040,4.99516446,1801.3,1801.2,3.61]
[1745654384637,4.99516446,1801.3,1801.2,3.609]
[1745654391148,8.20296446,1801.3,1801.2,3.609]
[1745654392343,19.07296446,1801.3,1801.2,3.609]
[1745654395250,14.07296446,1801.3,1801.2,3.609]
[1745654395548,10.86516446,1801.3,1801.2,3.609]
[1745654395750,14.07296446,1801.3,1801.2,3.609]
[1745654396150,10.86516446,1801.3,1801.2,3.609]
[1745654397256,14.07296446,1801.3,1801.2,3.609]
[1745654399453,15.74546446,1801.3,1801.0,3.609]
[1745654399647,3.2078,1801.1,1801.0,3.609]
[1745654400047,4.0013,1801.1,1801.0,3.609]
[1745654400249,9.3093,1801.1,1801.0,3.609]
[1745654405355,10.9224,1801.1,1801.0,3.609]
[1745654406150,7.7146,1801.1,1801.0,3.609]
[1745654406550,6.9211,1801.1,1801.0,3.609]
[1745654407442,5.308,1801.1,1801.0,4.4188]
[1745654408155,5.308,1801.1,1801.0,6.1266]
[1745654408549,5.308,1801.1,1801.0,47.33425485]
[1745654409745,5.308,1801.1,1801.0,46.52445485]
[1745654410049,7.0222,1801.1,1801.0,46.52445485]
[1745654410248,7.0222,1801.1,1801.0,44.81665485]
[1745654410753,7.0222,1801.1,1801.0,44.409]
[1745654413554,10.23,1801.1,1801.0,44.409]
[1745654432363,10.23,1801.1,1801.0,3.609]
[1745654432667,15.23,1801.1,1800.7,3.608]
[1745654432864,3.2078,1800.9,1800.8,40.8]
[1745654433258,10.2245,1800.9,1800.7,3.608]
[1745654433460,1.7087,1800.8,1800.7,5.2294]
[1745654433862,1.7087,1800.8,1800.7,46.0294]
[1745654434264,7.0167,1800.8,1800.7,46.0294]
[1745654434767,5.308,1800.8,1800.7,47.13961]
[1745654434966,5.308,1800.8,1800.7,56.21441]
[1745654436667,6.6215,1801.1,1800.8,1.11011]
[1745654436867,6.6215,1801.1,1800.8,3.56401]
[1745654437072,11.9295,1801.1,1800.8,3.56401]
[1745654437266,11.9295,1801.1,1800.9,1.6285]
[1745654437472,11.9295,1801.1,1801.0,3.608]
[1745654441481,9.0778,1801.9,1801.1,2.77491]
[1745654441779,9.0778,1801.9,1801.4,3.2078]
[1745654441975,9.0778,1801.9,1801.5,3.608]
[1745654442279,14.3858,1801.9,1801.5,44.408]
[1745654442679,3.2078,1801.7,1801.5,44.408]
[1745654443164,8.5158,1801.7,1801.5,44.408]
[1745654443769,8.5158,1801.7,1801.5,3.608]
[1745654444778,1.6497,1801.6,1801.5,3.608]
[1745654444977,1.6497,1801.6,1801.5,5.262]
[1745654445176,6.9577,1801.6,1801.5,5.262]
[1745654446676,8.6386,1801.6,1801.5,5.262]
[1745654449172,7.7747,1801.6,1801.5,5.262]
[1745654449978,5.308,1801.6,1801.5,5.262]
[1745654450580,3.2078,1802.2,1801.6,2.77414]
[1745654450875,3.2078,1802.3,1801.9,3.2078]
[1745654451074,5.6728,1802.1,1801.9,3.606]
[1745654451282,2.4444,1802.0,1801.6,6.8138]
[1745654451582,1.6301,1801.9,1801.6,3.606]
[1745654451774,1.6301,1801.9,1801.7,1.6785]
[1745654452185,6.9381,1801.9,1801.7,2.5205]
[1745654452582,6.9381,1801.9,1801.8,1.6785]
[1745654455177,5.308,1801.9,1801.8,2.78803]
[1745654455376,5.308,1801.9,1801.8,1.6785]
[1745654455777,5.308,1801.9,1801.8,2.78803]
[1745654456179,3.2078,1802.1,1802.0,1.10941]
[1745654456483,3.2078,1802.5,1802.0,6.8138]
[1745654456783,1.6682,1802.4,1802.1,2.70442]
[1745654456987,3.3435,1802.4,1802.2,1.5951]
[1745654457283,8.6515,1802.4,1802.3,3.606]
[1745654457980,8.6515,1802.4,1802.3,5.2011]
[1745654459888,3.2078,1802.5,1802.3,11.31032]
[1745654460086,5.6749,1803.0,1802.4,1.7155]
[1745654460385,5.6749,1803.0,1802.5,44.8285]
[1745654460386,1.6108,1802.9,1802.5,44.8285]
[1745654460583,1.6108,1802.9,1802.6,5.3205]
[1745654460784,4.8186,1802.9,1802.6,5.3205]
[1745654460987,1.6108,1802.8,1802.6,5.3205]
[1745654461190,1.6108,1802.8,1802.7,1.10898]
[1745654462182,6.9188,1802.8,1802.7,1.10898]
[1745654462377,11.9188,1802.8,1802.7,1.10898]
[1745654463388,11.9188,1802.8,1802.5,1.10905]
[1745654463587,3.2078,1802.6,1802.4,1.10916]
[1745654463779,2.4798,1802.5,1802.4,1.10916]
[1745654464182,7.7878,1802.5,1802.4,1.10916]
[1745654464683,7.7878,1802.5,1802.3,1.10918]
[1745654464886,1.6169,1802.4,1802.3,1.10918]
[1745654465088,2.453,1802.4,1802.3,1.10918]
[1745654465889,2.453,1802.4,1802.2,3.605]
[1745654466088,1.5937,1802.3,1802.2,3.605]
[1745654467084,6.9017,1802.3,1802.2,3.605]
[1745654470291,6.9017,1802.3,1802.2,5.3205]
[1745654470688,5.308,1802.3,1802.2,6.42978]
[1745654470892,9.0778,1802.6,1802.2,10.3205]
[1745654471082,9.0778,1802.6,1802.5,1.1091]
[1745654471287,9.0778,1802.6,1802.5,4.7141]
[1745654472091,14.3858,1802.6,1802.5,4.7141]
[1745654472294,14.3858,1802.6,1802.5,3.605]
[1745654472496,8.5158,1802.6,1802.5,4.7141]
[1745654472795,8.5158,1802.6,1802.5,5.3346]
[1745654472988,8.5158,1802.6,1802.5,6.4437]
[1745654474097,1.7079,1802.8,1802.7,1.10898]
[1745654474598,4.049,1802.9,1802.8,1.10891]
[1745654474798,5.69,1802.9,1802.8,1.10891]
[1745654475299,10.998,1802.9,1802.8,1.10891]
[1745654475798,10.998,1802.9,1802.8,4.71291]
[1745654479501,5.87,1803.4,1803.2,1.10865]
[1745654479704,3.3769,1803.3,1803.2,1.10865]
[1745654480201,8.6849,1803.3,1802.9,43.2985]
[1745654480390,4.9499,1803.2,1803.1,1.10872]
[1745654480594,1.7421,1803.2,1803.1,1.10872]
[1745654480792,1.7421,1803.2,1802.9,43.2985]
[1745654480997,4.9499,1803.2,1802.9,40.8]
[1745654481294,10.2579,1803.2,1802.9,40.8]
[1745654481496,1.6041,1803.1,1802.9,40.8]
[1745654481698,0.8462,1803.0,1802.9,41.90885]
[1745654482099,6.9668,1803.0,1802.9,1.10885]
[1745654482303,6.9668,1803.0,1802.7,3.613]
[1745654482605,1.6041,1802.9,1802.8,41.90891]
[1745654482900,1.6041,1802.9,1802.8,40.8]
[1745654483108,10.1199,1802.9,1802.6,4.72202]
[1745654483403,10.1199,1802.9,1802.7,1.10898]
[1745654483606,1.6041,1802.8,1802.7,1.10898]
[1745654484101,6.9121,1802.8,1802.7,1.10898]
[1745654485104,6.9121,1802.8,1802.7,2.84508]
[1745654486302,5.308,1802.8,1802.7,2.84508]
[1745654486599,5.308,1802.8,1802.7,3.66758]
[1745654488608,3.2078,1803.3,1802.8,2.77226]
[1745654488908,3.2078,1803.3,1803.2,1.10867]
[1745654489108,8.5158,1803.3,1803.2,1.10867]
[1745654491613,5.308,1803.3,1803.2,1.92607]
[1745654492316,8.5158,1803.3,1803.2,1.92607]
[1745654492711,5.308,1803.3,1803.2,1.92607]
[1745654492915,8.5158,1803.3,1803.2,0.8174]
[1745654493217,8.5158,1803.3,1803.1,3.612]
[1745654493413,0.7926,1803.2,1803.1,3.612]
[1745654493912,0.7926,1803.2,1802.9,41.90884]
[1745654494114,3.2078,1803.1,1802.9,45.52084]
[1745654494320,3.2078,1803.1,1802.9,4.72084]
[1745654495124,8.5158,1803.1,1802.9,4.72084]
[1745654500718,1.7317,1803.0,1802.9,4.72084]
[1745654501020,1.7317,1803.0,1802.9,1.10884]
[1745654501222,7.0397,1803.0,1802.9,1.10884]
[1745654501524,7.0397,1803.0,1802.9,2.81844]
[1745654501710,5.308,1803.0,1802.9,2.81844]
[1745654502618,5.308,1803.0,1802.8,0.0146]
[1745654502816,2.5191,1802.9,1802.8,1.12351]
[1745654503219,7.8271,1802.9,1802.8,1.10891]
[1745654503520,7.8271,1802.9,1802.7,45.256]
[1745654503521,7.8271,1802.9,1802.7,46.36496]
[1745654503723,1.6928,1802.8,1802.7,46.36496]
[1745654504124,7.0008,1802.8,1802.7,46.36496]
[1745654507220,7.0008,1802.8,1802.7,1.95296]
[1745654507424,1.10902,1802.7,1802.5,0.0146]
[1745654507626,3.2078,1802.6,1802.5,0.0146]
[1745654507827,4.012,1802.6,1802.3,1.10922]
[1745654508021,1.6912,1802.5,1802.3,1.10922]
[1745654508222,2.5218,1802.5,1802.3,1.10922]
[1745654508527,2.5218,1802.5,1802.4,1.10916]
[1745654508725,1.6912,1802.5,1802.4,1.10916]
[1745654508927,8.5158,1802.6,1802.5,1.1091]
[1745654509228,3.2078,1802.6,1802.5,3.6333]
[1745654510017,4.8333,1802.8,1802.5,3.6333]
[1745654510226,10.1413,1802.8,1802.6,2.75973]
[1745654510427,1.6255,1802.7,1802.6,1.6507]
[1745654511221,5.308,1802.7,1802.6,2.75974]
[1745654513130,5.308,1802.7,1802.5,5.60155]
[1745654513428,1.6001,1802.6,1802.5,7.27505]
[1745654514324,6.9081,1802.6,1802.5,7.27505]
[1745654520540,6.9081,1802.6,1802.5,5.6016]
[1745654521329,6.9081,1802.6,1802.5,7.225]
[1745654522931,5.308,1802.6,1802.5,7.225]
[1745654527941,5.308,1802.6,1802.5,7.2396]
[1745654531140,3.2078,1803.0,1802.5,11.1305]
[1745654531344,2.5551,1803.1,1802.8,1.10889]
[1745654531541,2.5551,1803.1,1802.8,3.619]
[1745654531542,1.7044,1803.0,1802.8,3.619]
[1745654531747,4.9122,1803.0,1802.8,3.619]
[1745654531938,0.8631,1802.9,1802.8,3.619]
[1745654532138,2.5675,1802.9,1802.8,3.619]
[1745654533139,7.8755,1802.9,1802.8,3.619]
[1745654535437,7.8755,1802.9,1802.7,2.74327]
[1745654535645,2.5398,1802.8,1802.7,2.74327]
[1745654536249,2.5398,1802.8,1802.5,1.12367]
[1745654536446,1.7394,1802.7,1802.6,4.72804]
[1745654537142,7.0474,1802.7,1802.6,4.72804]
[1745654537344,5.308,1802.7,1802.6,4.72804]
[1745654539949,5.308,1802.7,1802.6,6.37694]
[1745654546656,4.7939,1803.0,1802.9,1.10885]
[1745654547054,4.7939,1803.0,1802.9,4.71285]
[1745654547255,10.1019,1803.0,1802.9,4.71285]
[1745654547559,3.2078,1803.5,1803.2,1.10867]
[1745654547854,3.2078,1803.5,1802.9,7.92065]
[1745654547855,3.2514,1803.4,1803.0,3.189]
[1745654548057,1.6632,1803.3,1803.2,1.10867]
[1745654548553,1.6632,1803.3,1803.1,1.10868]
[1745654548750,1.6632,1803.3,1802.9,6.8264]
[1745654548951,1.6632,1803.3,1802.9,7.93522]
[1745654549152,6.9712,1803.3,1803.0,1.10877]
[1745654549354,6.9712,1803.3,1803.0,1.10879]
[1745654549655,5.308,1803.3,1803.2,1.10867]
[1745654549849,7.8311,1803.3,1803.2,1.10867]
[1745654554151,7.8311,1803.3,1803.2,2.73467]
[1745654558957,5.308,1803.3,1803.2,6.33767]
[1745654559259,5.308,1803.3,1803.2,4.71167]
[1745654559960,6.9408,1803.3,1803.2,4.71167]
[1745654560960,6.1236,1803.3,1803.2,6.45107]
[1745654563264,5.308,1803.3,1803.2,6.45107]
[1745654565260,5.308,1803.3,1803.2,6.46567]
[1745654573061,0.8224,1803.6,1803.3,2.7715]
[1745654573264,2.4527,1803.8,1803.7,1.10836]
[1745654574154,7.7607,1803.8,1803.7,1.10836]
[1745654574570,7.7607,1803.8,1803.7,3.64786]
[1745654579974,7.7607,1803.8,1803.6,3.603]
[1745654580175,1.6623,1803.7,1803.6,3.603]
[1745654580670,1.6623,1803.7,1803.6,44.403]
[1745654581059,6.9703,1803.7,1803.6,44.403]
[1745654581279,6.9703,1803.7,1803.6,3.603]
[1745654584679,6.9703,1803.7,1803.4,4.71051]
[1745654584880,5.6652,1803.6,1803.4,3.602]
[1745654585180,2.4658,1803.5,1803.4,4.71055]
[1745654585881,2.4658,1803.5,1803.4,3.602]
[1745654586172,7.7738,1803.5,1803.3,7.02655]
[1745654586370,1.6184,1803.4,1803.3,4.71055]
[1745654587280,6.9264,1803.4,1803.3,4.71055]
[1745654587972,6.9264,1803.4,1803.3,1.10855]
[1745654588171,6.9264,1803.4,1803.3,4.71055]
[1745654588978,10.1342,1803.4,1803.3,3.602]
[1745654589183,15.1342,1803.4,1802.9,5.918]
[1745654589369,3.2078,1803.2,1802.9,5.918]
[1745654589569,3.2078,1803.2,1802.8,3.602]
[1745654589570,3.2078,1803.0,1802.8,3.602]
[1745654589768,2.5833,1802.9,1802.8,3.602]
[1745654590177,7.8913,1802.9,1802.8,3.602]
[1745654594481,5.308,1802.9,1802.8,4.71091]
[1745654594881,5.308,1802.9,1802.8,7.24661]
[1745654596179,3.2078,1803.3,1803.2,1.10867]
[1745654596586,2.4629,1803.5,1803.4,1.10855]
[1745654597083,7.7709,1803.5,1803.4,1.10855]
[1745654597584,7.7709,1803.5,1803.4,2.83735]
[1745654598078,7.7709,1803.5,1803.4,1.7288]
[1745654599183,7.7709,1803.5,1803.4,2.83735]
[1745654600377,5.308,1803.5,1803.4,2.83735]
[1745654600578,2.4661,1803.8,1803.7,1.10836]
[1745654600787,4.073,1804.1,1803.7,6.37388]
[1745654601086,1.6657,1804.0,1803.9,1.10824]
[1745654601386,1.6657,1804.0,1803.9,2.71524]
[1745654601687,1.6657,1804.0,1803.9,2.71232499]
[1745654603786,3.2078,1804.3,1804.2,1.10805]
[1745654604383,1.719,1804.4,1804.3,1.10799]
[1745654605487,1.719,1804.4,1804.3,2.81079]
[1745654608689,1.719,1804.4,1804.0,10.3468]
[1745654608890,1.719,1804.4,1804.1,2.7628]
[1745654609086,1.719,1804.4,1804.2,1.10804]
[1745654609287,2.5408,1804.4,1804.2,1.6547]
[1745654609687,1.7236,1804.3,1804.2,1.6547]
[1745654611287,1.7236,1804.3,1804.2,2.76275]
[1745654612092,1.7236,1804.3,1804.2,1.6547]
[1745654613284,4.9314,1804.3,1804.0,5.918]
[1745654613491,0.895,1804.2,1804.0,5.918]
[1745654613783,2.5906,1804.2,1804.0,5.918]
[1745654614187,1.6956,1804.1,1804.0,5.918]
[1745654615184,11.01152,1804.1,1804.0,5.918]
[1745654615384,11.01152,1804.1,1803.7,4.70935]
[1745654615588,3.2078,1803.9,1803.7,3.601]
[1745654615794,2.5327,1803.8,1803.7,3.601]
[1745654616183,7.5327,1803.8,1803.6,5.918]
[1745654616387,4.864,1803.7,1803.6,5.918]
[1745654616693,4.864,1803.7,1803.4,4.70953]
[1745654616994,2.474,1803.6,1803.4,4.70953]
[1745654617193,1.6562,1803.5,1803.4,4.70953]
[1745654617594,4.864,1803.5,1803.4,4.70953]
[1745654617793,4.864,1803.5,1803.2,5.918]
[1745654618099,2.4669,1803.4,1803.2,5.918]
[1745654618388,2.71531,1803.3,1803.2,5.918]
[1745654618590,5.92311,1803.3,1802.9,4.70984]
[1745654618782,4.8145,1803.3,1802.9,4.70984]
[1745654619389,4.8145,1803.3,1802.9,6.29034]
[1745654619689,4.8145,1803.3,1803.0,1.10874]
[1745654619891,4.8145,1803.3,1803.1,1.10873]
[1745654620094,4.8145,1803.3,1803.0,1.5805]
[1745654620095,4.8145,1803.3,1803.2,1.10867]
[1745654620797,4.8145,1803.3,1803.1,1.94659]
[1745654621090,4.8145,1803.3,1803.2,1.5765]
[1745654622697,3.2078,1803.3,1803.2,2.68517]
[1745654622992,3.2078,1803.3,1803.2,1.5765]
[1745654623992,4.781,1803.3,1803.2,1.5765]
[1745654625296,3.2078,1803.3,1803.2,1.5765]
[1745654625499,1.5732,1803.5,1803.2,1.5765]
[1745654625793,3.2078,1803.4,1803.2,1.5765]
[1745654626090,1.5732,1803.3,1803.2,1.5765]
[1745654627996,1.5732,1803.3,1803.2,2.68517]
[1745654632598,1.5811,1803.5,1803.4,1.10855]
[1745654633494,3.2078,1803.6,1803.5,1.10848]
[1745654633694,3.2078,1803.6,1803.5,7.16998]
[1745654634001,1.5919,1803.8,1803.6,1.1084]
[1745654634202,1.5919,1803.8,1803.6,2.7118]
[1745654635101,1.5919,1803.8,1803.6,1.6034]
[1745654635297,3.2078,1803.7,1803.5,4.71048]
[1745654635499,1.5919,1803.6,1803.5,4.71048]
[1745654637403,1.5919,1803.6,1803.5,3.602]
[1745654637807,2.4063,1803.6,1803.5,3.602]
[1745654638702,7.4063,1803.6,1803.5,3.602]
[1745654638906,7.4063,1803.6,1803.4,5.918]
[1745654639101,4.8596,1803.5,1803.4,5.918]
[1745654639903,4.8596,1803.5,1803.2,1.10867]
[1745654640099,1.6518,1803.4,1803.1,6.8098]
[1745654640300,0.7995,1803.3,1803.2,1.10866]
[1745654640607,1.6126,1803.3,1803.2,1.10866]
[1745654642906,0.7995,1803.3,1803.2,1.10866]
[1745654643207,0.7995,1803.3,1803.2,2.75496]
[1745654643709,2.4705,1803.4,1803.2,2.75496]
[1745654643906,4.0687,1803.5,1803.3,1.6463]
[1745654644109,0.8609,1803.5,1803.4,1.93025]
[1745654645107,0.8609,1803.5,1803.4,0.8217]
[1745654645412,5.7237,1803.5,1803.2,1.10866]
[1745654645603,5.7237,1803.5,1803.2,3.50816]